[Event "10th Floripa Open 2024"]
[Site "Florianopolis"]
[Date "2024.01.26"]
[Round "7.7"]
[White "Rodriguez Vila, Andres"]
[Black "Dos Santos Dutra, Fernando Junior Frei"]
[Result "1-0"]
[ECO "B12"]
[WhiteElo "2407"]
[BlackElo "2262"]
[Annotator "RC"]
[PlyCount "66"]
[EventDate "2024.01.10"]
[EventType "swiss"]
[EventCountry "BRA"]
[SourceTitle "playchess.com"]
[Source "ChessBase"]
[SourceQuality "1"]
[TimeControl "5400+30"]

1. e4 {[%emt 0:00:04]} c6 {[%emt 0:00:14]} 2. d4 {[%emt 0:01:04]} d5 {[%emt 0:00:07]} 3. e5 {[%emt 0:00:04]} c5 {[%emt 0:00:36]} 4. dxc5 {[%emt 0:00:06]} e6 {[%emt 0:00:06]} 5. a3 {[%emt 0:00:44]} Nc6 {[%emt 0:01:13]} 6. Nf3 {[%emt 0:00:34]} Bxc5 {[%emt 0:00:17]} 7. b4 {[%emt 0:00:04]} Bb6 {[%emt 0:00:22]} 8. Bb2 {[%emt 0:00:24]} Nh6 {[%emt 0:00:42]} 9. Bd3 {[%emt 0:00:11]} Nf5 {[%emt 0:00:33]} 10. O-O {[%emt 0:00:26]} O-O {[%emt 0:00:49]} 11. Nbd2 {[%emt 0:01:55]} a5 {[%emt 0:00:20]} 12. b5 {[%emt 0:00:39]} Nce7 {[%emt 0:00:32]} 13. a4 {[%emt 0:01:03]} Ng6 {[%emt 0:01:21]} 14. g3 {[%emt 0:00:27]} Bc5 {[%emt 0:03:10]} 15. Nb3 {[%emt 0:00:32]} b6 {[%emt 0:00:29]} 16. Re1 {[%emt 0:04:39]} Re8 {[%emt 0:08:25]} 17. h4 {[%emt 0:09:51]} Bb4 {[%emt 0:07:52]} 18. c3 {[%emt 0:01:11]} Be7 {[%emt 0:03:55]} 19. h5 {[%emt 0:00:07]} Nf8 {[%emt 0:00:25]} 20. Nbd4 {[%emt 0:04:38]} Nxd4 {[%emt 0:04:06]} 21. cxd4 {[%emt 0:00:05]} f5 {[%emt 0:00:47]} 22. exf6 {[%emt 0:00:23]} gxf6 {[%emt 0:00:03]} 23. Nh2 {[%emt 0:05:55]} Ra7 {[%emt 0:04:21]} 24. Rc1 {[%emt 0:02:07]} Bd6 {[%emt 0:06:05]} 25. Ng4 {[%emt 0:00:07]} Kh8 {[%emt 0:18:40]} 26. Rc6 {[%emt 0:00:38]} Rf7 {[%emt 0:00:38]} 27. Qf3 {[%emt 0:06:28]} Bb7 {[%emt 0:07:54]} 28. Nh6 {[%emt 0:06:12]} Rg7 {[%emt 0:01:27]} 29. Nf5 {[%emt 0:00:41]} Bxc6 {[%emt 0:01:22]} 30. Nxg7 {[%emt 0:00:04]} Kxg7 {[%emt 0:00:13]} 31. bxc6 {[%emt 0:00:02]} Qe7 {[%emt 0:01:01]} 32. Bc1 {[%emt 0:03:15]} Rc8 {[%emt 0:00:38]} 33. Bb5 {[%emt 0:02:02]} Qf7 {[%emt 0:02:31]} 1-0

[Event "10th Floripa Open 2024"]
[Site "Florianopolis"]
[Date "2024.01.26"]
[Round "7.8"]
[White "Do Valle Cardoso, Lucas"]
[Black "Coppola, Claudio"]
[Result "1-0"]
[ECO "C42"]
[WhiteElo "2392"]
[BlackElo "2250"]
[Annotator "RC"]
[PlyCount "45"]
[EventDate "2024.01.10"]
[EventType "swiss"]
[EventCountry "BRA"]
[SourceTitle "playchess.com"]
[Source "ChessBase"]
[SourceQuality "1"]
[TimeControl "5400+30"]

1. e4 {[%emt 0:00:01]} e5 {[%emt 0:01:05]} 2. Nf3 {[%emt 0:00:08]} Nf6 {[%emt 0:00:08]} 3. Nxe5 {[%emt 0:00:07]} d6 {[%emt 0:00:07]} 4. Nf3 {[%emt 0:00:25]} Nxe4 {[%emt 1:31:10]} 5. c4 {[%emt 0:00:08]} g6 {[%emt 0:00:00]} 6. Nc3 {[%emt 0:02:29]} Nxc3 {[%emt 0:00:00]} 7. dxc3 {[%emt 0:00:17]} Bg7 {[%emt 0:00:00]} 8. Bg5 {[%emt 0:01:17]} f6 {[%emt 0:00:00]} 9. Be3 {[%emt 0:01:36]} Nc6 {[%emt 0:00:00]} 10. h4 {[%emt 0:10:48]} Bg4 {[%emt 0:00:00]} 11. Qb3 {[%emt 0:08:06]} Bxf3 {[%emt 0:00:00]} 12. gxf3 {[%emt 0:00:20]} Qd7 {[%emt 0:00:00]} 13. Qxb7 {[%emt 0:04:59]} O-O {[%emt 0:00:00]} 14. O-O-O {[%emt 0:08:47]} a6 {[%emt 0:00:00]} 15. c5 {[%emt 0:09:03]} Rfb8 {[%emt 0:00:00]} 16. Bc4+ {[%emt 0:00:13]} Kh8 {[%emt 0:00:00]} 17. Rxd6 {[%emt 0:00:05]} Rxb7 {[%emt 0:00:00]} 18. Rxd7 {[%emt 0:00:08]} Rab8 {[%emt 0:00:00]} 19. Rhd1 {[%emt 0:02:06]} Rxb2 {[%emt 0:00:00]} 20. Bb3 {[%emt 0:02:31]} Re2 {[%emt 0:00:00]} 21. Rxc7 {[%emt 0:01:18]} Ne5 {[%emt 0:00:00]} 22. f4 {[%emt 0:00:29]} Nf3 {[%emt 0:00:00]} 23. Rdd7 {[%emt 0:01:46]} 1-0

[Event "10th Floripa Open 2024"]
[Site "Florianopolis"]
[Date "2024.01.26"]
[Round "7.9"]
[White "De Siqueira, Luigy Lira"]
[Black "Perez Gormaz, Matias"]
[Result "1/2-1/2"]
[ECO "C45"]
[WhiteElo "2230"]
[BlackElo "2388"]
[Annotator "RC"]
[PlyCount "63"]
[EventDate "2024.01.10"]
[EventType "swiss"]
[EventCountry "BRA"]
[SourceTitle "playchess.com"]
[Source "ChessBase"]
[SourceQuality "1"]
[TimeControl "5400+30"]

1. e4 {[%emt 0:00:03]} e5 {[%emt 0:00:36]} 2. Nf3 {[%emt 0:00:43]} Nc6 {[%emt 0:00:08]} 3. d4 {[%emt 0:00:05]} exd4 {[%emt 0:00:08]} 4. Nxd4 {[%emt 0:00:05]} Qf6 {[%emt 0:00:36]} 5. Be3 {[%emt 0:01:12]} Bc5 {[%emt 0:00:15]} 6. c3 {[%emt 0:00:18]} Qg6 {[%emt 0:01:13]} 7. f3 {[%emt 0:18:15]} Nge7 {[%emt 0:14:54]} 8. Nf5 {[%emt 0:13:21]} Bxe3 {[%emt 0:02:50]} 9. Nxe3 {[%emt 0:00:02]} O-O {[%emt 0:00:38]} 10. Bc4 {[%emt 0:02:13]} d6 {[%emt 0:33:10]} 11. O-O {[%emt 0:02:34]} Be6 {[%emt 0:00:03]} 12. Na3 {[%emt 0:02:41]} Rad8 {[%emt 0:04:29]} 13. Bd5 {[%emt 0:06:54]} Kh8 {[%emt 0:01:59]} 14. Qb3 {[%emt 0:06:50]} Bc8 {[%emt 0:05:40]} 15. Nb5 {[%emt 0:02:00]} Rd7 {[%emt 0:00:25]} 16. Bxc6 {[%emt 0:07:32]} bxc6 {[%emt 0:02:13]} 17. Nd4 {[%emt 0:07:37]} Qg5 {[%emt 0:03:25]} 18. Rae1 {[%emt 0:06:01]} Rdd8 {[%emt 0:02:01]} 19. Qa4 {[%emt 0:02:53]} Qc5 {[%emt 0:00:44]} 20. Kh1 {[%emt 0:00:44]} Bd7 {[%emt 0:02:03]} 21. e5 {[%emt 0:02:39]} Ng6 {[%emt 0:09:35]} 22. f4 {[%emt 0:02:48]} dxe5 {[%emt 0:04:06]} 23. fxe5 {[%emt 0:00:14]} Nxe5 {[%emt 0:01:04]} 24. Nb3 {[%emt 0:02:13]} Qb6 {[%emt 0:00:38]} 25. Qe4 {[%emt 0:09:08]} Rde8 {[%emt 0:00:38]} 26. Qc2 {[%emt 0:02:48]} c5 {[%emt 0:02:23]} 27. Nd2 {[%emt 0:00:49]} Qh6 {[%emt 0:03:26]} 28. Ndc4 {[%emt 0:01:02]} Nxc4 {[%emt 0:03:20]} 29. Nxc4 {[%emt 0:00:01]} Bb5 {[%emt 0:01:02]} 30. Qb3 {[%emt 0:00:32]} Bxc4 {[%emt 0:01:16]} 31. Qxc4 {[%emt 0:00:01]} Rxe1 {[%emt 0:00:29]} 32. Rxe1 {[%emt 0:00:04]} 1/2-1/2

[Event "10th Floripa Open 2024"]
[Site "Florianopolis"]
[Date "2024.01.26"]
[Round "7.10"]
[White "Campos, Maria Jose"]
[Black "Perdomo, Leandro"]
[Result "1/2-1/2"]
[ECO "A37"]
[WhiteElo "2208"]
[BlackElo "2382"]
[Annotator "TA"]
[PlyCount "61"]
[EventDate "2024.01.10"]
[EventType "swiss"]
[EventCountry "BRA"]
[SourceTitle "playchess.com"]
[Source "ChessBase"]
[SourceQuality "1"]
[TimeControl "5400+30"]

{[%evp 9,61,4,9,0,0,0,12,-18,32,16,44,21,27,5,12,3,9,0,0,0,0,0,0,0,0,-11,-5,-30,-8,-9,20,0,0,0,0,-16,0,-12,0,-30,-43,-45,-47,-30,-24,-21,-14,-10,-6,-25,0,-22,0,-17]} 1. c4 {[%emt 0:00:14]} g6 {[%emt 0:00:02]} 2. g3 {[%emt 0:00:36]} Bg7 {[%emt 0:00:04]} 3. Bg2 {[%emt 0:00:16]} c5 {[%emt 0:00:02]} 4. Nc3 {[%emt 0:00:31]} Nc6 {[%emt 0:00:03]} 5. Nf3 {[%emt 0:01:07]} d6 {[%emt 0:00:49][%cal Bd7d6,Bd6c5,Bc5d4][%mdl 32]} 6. e3 {[%emt 0:04:44]} e5 {[%emt 0:05:07]} 7. d4 {[%emt 0:06:58]} exd4 {[%emt 0:48:17]} 8. exd4 {[%emt 0:01:14]} Bg4 {[%emt 0:05:20]} (8... cxd4 $11 9. Nb5 Bg4) 9. O-O {[%emt 0:02:05]} Nge7 {[%emt 0:01:00]} 10. dxc5 {[%emt 0:03:54]} dxc5 {[%emt 0:00:49]} 11. Be3 {[%emt 0:02:39]} Nd4 {[%emt 0:13:21]} 12. Bxd4 {[%emt 0:02:39]} cxd4 {[%emt 0:00:48]} 13. Ne2 {[%emt 0:05:20]} Nc6 {[%emt 0:03:40]} 14. Nf4 {[%emt 0:02:18]} O-O {[%emt 0:00:09]} 15. h3 {[%emt 0:04:23]} Bf5 {[%emt 0:00:30]} 16. Re1 {[%emt 0:04:44]} Qd6 {[%emt 0:06:53]} 17. Nh4 {[%emt 0:55:18]} Bd7 {[%emt 0:00:31] [#] And now ...g5 would win. This pair of bishops is nice.} 18. Nd5 {[%emt 0:00:00]} Rfe8 {[%emt 0:02:48]} 19. Nf3 {[%emt 0:00:00][%cal Bh4f3,Bf3e1,Be1d3][%mdl 32]} b6 {[%emt 0:02:57]} 20. Qd2 {[%emt 0:00:00]} Rxe1+ {[%emt 0:02:59]} 21. Nxe1 {[%emt 0:00:00]} Re8 {[%emt 0:00:09]} 22. Nd3 {[%emt 0:00:00]} Bf5 {[%emt 0:00:15]} 23. Rd1 {[%emt 0:00:00]} h5 {[%emt 0:01:19]} 24. Qf4 {[%emt 0:00:00]} Qxf4 {[%emt 0:01:07]} 25. N5xf4 {[%emt 0:00:00]} Ne5 {[%emt 0:00:43]} 26. Nxe5 $1 {[%emt 0:00:00]} Rxe5 {[%emt 0:00:06]} 27. Bf1 {[%emt 0:00:00]} Re8 {[%emt 0:01:19]} 28. Bd3 {[%emt 0:05:30]} Bd7 29. Bf1 {[%emt 0:00:30]} Bf5 30. Bd3 Bd7 31. Bf1 {[%emt 0:01:00] Weighted Error Value: White=0.10 (very precise) /Black=0.10 (very precise) .  Mistake:       	---       	Black=1      Inaccurate:     	White=2     	Black=2      OK:         	White=7     	Black=9      Best:        	---       	Black=1      Strong:       	White=1     	---} 1/2-1/2

[Event "10th Floripa Open 2024"]
[Site "Florianopolis"]
[Date "2024.01.28"]
[Round "9.1"]
[White "Silva, Kaua Marques"]
[Black "Tari, Aryan"]
[Result "0-1"]
[ECO "B67"]
[WhiteElo "2142"]
[BlackElo "2623"]
[Annotator "TA"]
[PlyCount "52"]
[EventDate "2024.01.10"]
[EventType "swiss"]
[EventCountry "BRA"]
[SourceTitle "playchess.com"]
[Source "ChessBase"]
[SourceQuality "1"]
[TimeControl "5400+30"]

{[%evp 21,52,34,29,29,38,36,28,31,37,44,22,25,30,31,20,27,42,39,54,-86,-98,-147,-148,-163,-154,-310,-313,-308,-290,-303,-330,-300,-307]} 1. e4 {[%emt 0:00:02]} c5 {[%emt 0:01:11]} 2. Nf3 {[%emt 0:00:05]} d6 {[%emt 0:00:28]} 3. d4 {[%emt 0:00:05]} cxd4 {[%emt 0:00:04]} 4. Nxd4 {[%emt 0:00:05]} Nf6 {[%emt 0:00:04]} 5. Nc3 {[%emt 0:00:02]} Nc6 {[%emt 0:00:06]} 6. Bg5 {[%emt 0:00:05]} e6 {[%emt 0:00:05]} 7. Qd2 {[%emt 0:00:40]} a6 {[%emt 0:00:12]} 8. O-O-O {[%emt 0:00:07]} Bd7 {[%emt 0:00:04][%cal Bc8d7,Bd7c6,Bc6b7][%mdl 32] EV=15.77. Goes to e4 (dbg))} 9. Kb1 {[%emt 0:00:43]} b5 {[%emt 0:00:10]} 10. Nxc6 {[%emt 0:00:48]} Bxc6 {[%emt 0:00:40]} 11. f3 {[%emt 0:00:44]} Be7 {[%emt 0:02:21]} 12. h4 {[%emt 0:01:33]} Rc8 {[%emt 0:07:05]} 13. Ne2 {[%emt 0:03:08] OK} Bb7 {[%emt 0:04:41]} 14. Nd4 {[%emt 0:02:13] OK. White has an edge.} h6 {[%emt 0:02:57]} 15. Be3 {[%emt 0:00:06] OK} Nd7 {[%emt 0:00:15] OK} 16. g4 {[%emt 0:00:49] OK} Ne5 {[%emt 0:03:38][%cal Oe5f3]} 17. Qg2 {[%emt 0:02:17]} g6 {[%emt 0:07:30]} 18. f4 {[%emt 0:02:08] [#] aiming for Nxe6.} (18. Be2 $5) 18... Nc4 {[%emt 0:02:41] Best (Easy)} 19. Bxc4 {[%emt 0:00:55] OK} Rxc4 {[%emt 0:00:31]} 20. Rhf1 {[%emt 0:01:38] Mistake (1.4)} (20. b3 $1 $14 {keeps the upper hand.} Rc3 21. Bd2) 20... Qa8 $1 $17 {[%emt 0:05:08][%cal Oh6h5] Strong} ({But not} 20... Bxh4 21. b3 Rc8 22. f5 $11) 21. b3 {[%emt 0:20:00] Mistake (0.5)} ({Better is} 21. Ka1) 21... Bxe4 {[%emt 0:01:54]} 22. Qf2 {[%emt 0:03:16] OK} Rc8 {[%emt 0:03:53] OK} 23. f5 $2 {[%emt 0:02:20] [#] White does not recover from this. Mistake (1.6)} (23. Rde1 $17 {was worth a try.}) 23... gxf5 $1 $19 {[%emt 0:07:23] Strong. Black has a decisive advantage.} 24. gxf5 {[%emt 0:00:19]} e5 {[%emt 0:02:23] OK} 25. f6 {[%emt 0:08:19] OK} Bf8 {[%emt 0:02:55][%cal Oh8g8] White must now prevent ...Rg8! A strong pair of Bishops. OK} 26. Rfe1 {[%emt 0:05:00][%cal Oe3f4] OK} Rg8 {[%emt 0:05:16] Weighted Error Value: White=0.28 (precise) /Black=0.01 (flawless) .  Mistake:       	White=3     	---        OK:         	White=8     	Black=4      Best:        	---       	Black=1      Strong:       	---       	Black=2} ({Much less strong is} 26... exd4 27. Rxd4 Bxc2+ (27... Rxc2 $2 {too greedy.} 28. Rxe4+ Qxe4 29. Bd2 $18) 28. Ka1) 0-1

[Event "10th Floripa Open 2024"]
[Site "Florianopolis"]
[Date "2024.01.28"]
[Round "9.2"]
[White "Salinas Herrera, Pablo"]
[Black "Rodriguez Vila, Andres"]
[Result "1-0"]
[ECO "A48"]
[WhiteElo "2477"]
[BlackElo "2407"]
[Annotator "TA"]
[PlyCount "89"]
[EventDate "2024.01.10"]
[EventType "swiss"]
[EventCountry "BRA"]
[SourceTitle "playchess.com"]
[Source "ChessBase"]
[SourceQuality "1"]
[TimeControl "5400+30"]

{[%evp 18,89,15,14,14,12,15,15,16,14,20,10,12,16,14,12,23,23,87,89,35,51,61,65,54,35,45,32,58,64,58,47,66,46,102,107,116,123,119,119,132,101,111,109,135,118,114,116,170,180,156,139,152,152,261,239,288,293,348,355,427,314,708,525,1094,1084,1040,1029,2060,1973,29987,29988,29988,29989]} 1. d4 {[%emt 0:00:57]} Nf6 {[%emt 0:00:12]} 2. Nf3 {[%emt 0:00:14]} g6 {[%emt 0:00:33]} 3. Nbd2 {[%emt 0:00:07]} c5 {[%emt 0:00:55]} 4. dxc5 {[%emt 0:00:08]} Qa5 {[%emt 0:00:20]} 5. a3 {[%emt 0:01:20]} Qxc5 {[%emt 0:00:10]} 6. b4 {[%emt 0:00:08]} Qc7 {[%emt 0:00:20]} 7. Bb2 {[%emt 0:00:16]} Bg7 {[%emt 0:00:08]} 8. c4 {[%emt 0:00:09]} O-O {[%emt 0:00:14]} 9. e3 {[%emt 0:00:58]} d6 {[%emt 0:01:38]} 10. Be2 {[%emt 0:00:29]} Nbd7 {[%emt 0:01:33]} 11. O-O {[%emt 0:00:12] OK} b6 {[%emt 0:00:25] OK} 12. Qb3 {[%emt 0:06:14]} Bb7 {[%emt 0:00:12] The position is equal.} 13. Rfd1 {[%emt 0:00:12] OK} Rac8 {[%emt 0:03:07]} 14. Nd4 {[%emt 0:09:34]} a6 {[%emt 0:00:59] OK} 15. Rac1 {[%emt 0:01:57] OK} e5 {[%emt 0:00:29]} 16. N4f3 {[%emt 0:00:58] OK} Qb8 {[%emt 0:00:17]} 17. Nb1 {[%emt 0:01:44] OK} b5 {[%emt 0:08:26] Mistake (0.6)} 18. cxb5 $16 {[%emt 0:02:16] Best (Easy)} axb5 {[%emt 0:00:06]} 19. Rxc8 {[%emt 0:03:21] OK} Rxc8 {[%emt 0:00:06]} 20. Ng5 {[%emt 0:01:20] OK} (20. Bxb5 $2 Bxf3 21. gxf3 Qxb5 $19) 20... Rf8 {[%emt 0:07:53] OK} 21. Bxb5 {[%emt 0:06:07] Black must now prevent a4.} h6 {[%emt 0:08:04] Best (Easy)} 22. Bxd7 {[%emt 0:02:10][%cal Og5f7] OK} Nxd7 {[%emt 0:00:07] Inaccurate} 23. Nf3 {[%emt 0:00:04] OK} Nb6 {[%emt 0:08:37] OK} 24. Nc3 {[%emt 0:07:37][%cal Bb1c3,Bc3a4,Ba4c5][%mdl 32] EV=22.37. Goes to e5 (dbg)). OK} d5 {[%emt 0:03:19]} 25. Na4 $36 {[%emt 0:03:50][%mdl 2048] White is more active. OK} Nc4 {[%emt 0:07:56] Mistake (0.6)} ({Black should try} 25... Nd7 $14) 26. Nc5 {[%emt 0:00:09] [#] aiming for Nd7. OK} Nxb2 {[%emt 0:00:29]} 27. Qxb2 {[%emt 0:00:12]} Bc6 {[%emt 0:00:07] Against Nd7. OK} 28. a4 {[%emt 0:02:52]} Rc8 {[%emt 0:06:10] OK} 29. Rc1 {[%emt 0:02:27]} d4 {[%emt 0:05:34] Best} 30. exd4 {[%emt 0:09:13] OK} Bxf3 {[%emt 0:00:22]} 31. gxf3 {[%emt 0:00:06]} exd4 {[%emt 0:00:14] Best} 32. Qd2 {[%emt 0:02:29] Wards off Qf4. Best (Easy)} Rd8 {[%emt 0:08:53] [#] Mistake (0.5)} (32... d3 $16) 33. Nd3 $1 $18 {[%emt 0:00:07] Strong} Qa8 {[%emt 0:01:21] OK} 34. Qd1 {[%emt 0:00:03] OK} Bf8 {[%emt 0:00:27] OK} 35. b5 {[%emt 0:00:38] OK} Rd5 {[%emt 0:00:09] Mistake (1.1)} (35... Qd5 $16 {was called for.} 36. Rb1 Qg5+ 37. Kh1 Bd6) 36. Rc6 {[%emt 0:02:25] OK} Rg5+ {[%emt 0:01:56]} 37. Kf1 {[%emt 0:00:16] Best} Qa7 {[%emt 0:06:33]} 38. f4 {[%emt 0:02:00] OK} Rh5 {[%emt 0:02:09]} 39. Ne5 {[%emt 0:00:08] Qb3 would now be deadly.} Rxh2 $2 {[%emt 0:01:46] Mistake (3.9)} (39... Bg7 40. Qb3 Qb7 41. Rxg6 (41. Nxg6 Qd7 $18) 41... d3 42. Nxd3 Kh7) 40. Qb3 {[%emt 0:00:08][%cal Ob3d5] Qd5! is the strong threat.} d3 {[%emt 0:13:14][%csl Gh2][%cal Ra7f2] Inaccurate} 41. b6 {[%emt 0:00:06]} Qb7 {[%emt 0:00:05] OK} 42. Qxd3 {[%emt 0:03:05] Active counter play!} (42. Rxg6+ Bg7 $16) 42... Bc5 {[%emt 0:01:33]} 43. Qd5 {[%emt 0:03:58][%cal Oc6c8] Threatening mate with Rc8+!} (43. Rxc5 {is a self mate.} Qg2+ (43... Qxb6 $2 {too greedy.} 44. Qd5 $18) 44. Ke2 Qxf2+ 45. Kd1 Rh1+) ({Less strong is} 43. Qd8+ Kh7 44. Qd7 (44. Rxc5 Qe4) 44... Rxf2+ 45. Ke1 Qxd7 46. Nxd7 Bxb6 $18) 43... Qa6+ {[%emt 0:03:54]} 44. Kg1 {[%emt 0:00:07]} Rh1+ {[%emt 0:00:51]} 45. Qxh1 {[%emt 0:00:04] Weighted Error Value: White=0.15 (very precise) /Black=0.38.  Mistake:       	---       	Black=5      Inaccurate:     	---       	Black=2      OK:         	White=17    	Black=9      Best:        	White=3     	Black=3      Strong:       	White=1     	---} 1-0

[Event "10th Floripa Open 2024"]
[Site "Florianopolis"]
[Date "2024.01.28"]
[Round "9.3"]
[White "Vazquez, Facundo"]
[Black "Fier, Alexandr"]
[Result "0-1"]
[ECO "D72"]
[WhiteElo "2381"]
[BlackElo "2549"]
[Annotator "RC"]
[PlyCount "92"]
[EventDate "2024.01.10"]
[EventType "swiss"]
[EventCountry "BRA"]
[SourceTitle "playchess.com"]
[Source "ChessBase"]
[SourceQuality "1"]
[TimeControl "5400+30"]

1. d4 {[%emt 0:00:03]} Nf6 {[%emt 0:00:05]} 2. c4 {[%emt 0:00:11]} g6 {[%emt 0:00:04]} 3. g3 {[%emt 0:00:07]} Bg7 {[%emt 0:00:04]} 4. Bg2 {[%emt 0:00:08]} d5 {[%emt 0:00:03]} 5. cxd5 {[%emt 0:01:41]} Nxd5 {[%emt 0:01:15]} 6. e4 {[%emt 0:00:28]} Nb6 {[%emt 0:00:05]} 7. Ne2 {[%emt 0:00:08]} O-O {[%emt 0:00:04]} 8. O-O {[%emt 0:00:29]} c5 {[%emt 0:00:18]} 9. d5 {[%emt 0:00:32]} e6 {[%emt 0:00:05]} 10. Nec3 {[%emt 0:01:06]} Na6 {[%emt 0:00:15]} 11. Na3 {[%emt 0:03:13]} exd5 {[%emt 0:00:05]} 12. exd5 {[%emt 0:00:32]} Bf5 {[%emt 0:00:06]} 13. Bf4 {[%emt 0:07:36]} Nb4 {[%emt 0:01:12]} 14. Qd2 {[%emt 0:08:25]} Re8 {[%emt 0:03:47]} 15. Rfe1 {[%emt 0:12:00]} Rxe1+ {[%emt 0:04:19]} 16. Rxe1 {[%emt 0:00:02]} Nd3 {[%emt 0:00:07]} 17. Rd1 {[%emt 0:01:27]} Nxf4 {[%emt 0:03:08]} 18. Qxf4 {[%emt 0:00:11]} Qd7 {[%emt 0:00:02]} 19. Qd2 {[%emt 0:12:45]} Rd8 {[%emt 0:04:13]} 20. Re1 {[%emt 0:09:03]} a6 {[%emt 0:04:36]} 21. b3 {[%emt 0:04:25]} Nc8 {[%emt 0:01:16]} 22. Ne4 {[%emt 0:02:06]} Bxe4 {[%emt 0:01:36]} 23. Bxe4 {[%emt 0:00:02]} b5 {[%emt 0:00:43]} 24. Bg2 {[%emt 0:03:40]} b4 {[%emt 0:06:27]} 25. Nb1 {[%emt 0:00:07]} Nb6 {[%emt 0:00:04]} 26. Qe2 {[%emt 0:04:21]} Nxd5 {[%emt 0:08:55]} 27. Qxa6 {[%emt 0:01:25]} Bd4 {[%emt 0:00:04]} 28. Bxd5 {[%emt 0:04:13]} Qxd5 {[%emt 0:00:06]} 29. Qe2 {[%emt 0:00:48]} Ra8 {[%emt 0:01:10]} 30. Qc2 {[%emt 0:04:12]} Qf3 {[%emt 0:00:36]} 31. Qe2 {[%emt 0:00:02]} Qf5 {[%emt 0:00:11]} 32. Kg2 {[%emt 0:03:02]} Ra6 {[%emt 0:01:13]} 33. Rf1 {[%emt 0:11:39]} Re6 {[%emt 0:00:37]} 34. Qf3 {[%emt 0:00:33]} Qc2 {[%emt 0:00:50]} 35. Qd1 {[%emt 0:01:15]} Qxa2 {[%emt 0:04:15]} 36. Nd2 {[%emt 0:00:09]} Kg7 {[%emt 0:00:02]} 37. Nf3 {[%emt 0:01:06]} Bf6 {[%emt 0:00:05]} 38. h4 {[%emt 0:01:53]} c4 {[%emt 0:02:32]} 39. bxc4 {[%emt 0:00:39]} Qxc4 {[%emt 0:00:04]} 40. h5 {[%emt 0:00:24]} gxh5 {[%emt 0:00:19]} 41. Rh1 {[%emt 0:01:00]} b3 {[%emt 0:07:17]} 42. Rxh5 {[%emt 0:00:57]} b2 {[%emt 0:00:03]} 43. Qb1 {[%emt 0:00:58]} h6 {[%emt 0:00:22]} 44. Rh1 {[%emt 0:00:46]} Ra6 {[%emt 0:02:30]} 45. Qf5 {[%emt 0:01:17]} Ra1 {[%emt 0:00:06]} 46. Nd2 {[%emt 0:01:12]} Qc6+ {[%emt 0:00:43]} 0-1